bitfinex/quotes_SOLUSD_20220208
["timestamp","ask_amount","ask_price","bid_price","bid_amount"]
[1644364073538,125.9397,113.63,113.46,10.59]
[1644364073737,125.9397,113.63,113.46,35.585675]
[1644364073938,125.9397,113.63,113.46,42.96332729]
[1644364074137,155.738,113.63,113.49,13.2068]
[1644364074340,4.402,113.62,113.49,13.4568]
[1644364074539,4.402,113.62,113.49,20.83445229]
[1644364074738,10.652,113.62,113.49,20.83445229]
[1644364074938,24.1411,113.61,113.49,13.4568]
[1644364075136,30.1411,113.61,113.49,13.4568]
[1644364075337,4.402,113.6,113.49,6.0]
[1644364075539,4.402,113.6,113.48,10.59]
[1644364075738,4.402,113.6,113.48,16.59]
[1644364076440,34.2038,113.6,113.45,29.58235229]
[1644364076641,36.56155549,113.6,113.45,23.6147]
[1644364077040,34.4538,113.6,113.45,19.2127]
[1644364077841,34.4538,113.6,113.46,98.72]
[1644364078040,19.4618,113.6,113.47,17.6151]
[1644364078242,13.4618,113.6,113.47,29.58275229]
[1644364078440,13.4618,113.6,113.47,35.58275229]
[1644364078641,13.4618,113.6,113.47,35.83275229]
[1644364079243,17.8638,113.6,113.47,123.96275229]
[1644364079444,0.25,113.6,113.47,123.96275229]
[1644364079843,30.3911,113.61,113.47,123.96275229]
[1644364080144,34.7931,113.61,113.47,35.83275229]
[1644364080342,14.992,113.6,113.47,34.4551]
[1644364080542,23.8022,113.6,113.47,34.4551]
[1644364080744,30.0522,113.6,113.47,34.4551]
[1644364081343,24.0522,113.6,113.47,34.4551]
[1644364081547,13.4622,113.6,113.48,1.37765229]
[1644364081843,13.4622,113.6,113.49,17.6117]
[1644364082244,13.4622,113.6,113.49,25.23935229]
[1644364082443,13.4622,113.6,113.49,113.36935229]
[1644364082842,0.25,113.6,113.49,25.23935229]
[1644364083243,30.3911,113.61,113.49,25.23935229]
[1644364083643,30.1411,113.61,113.5,0.024]
[1644364083845,98.2091,113.63,113.51,17.6092]
[1644364084042,98.2091,113.63,113.52,10.614]
[1644364084043,102.6111,113.63,113.52,10.614]
[1644364084244,102.6111,113.63,113.53,0.024]
[1644364084542,74.8991,113.63,113.53,15.016]
[1644364084746,29.1706,113.65,113.54,1.40165229]
[1644364085043,42.3761,113.65,113.54,1.40165229]
[1644364085243,42.3761,113.65,113.54,1.65165229]
[1644364085442,48.3761,113.65,113.54,0.274]
[1644364085844,48.3761,113.65,113.59,0.82027486]
[1644364086044,44.2241,113.65,113.59,0.82027486]
[1644364089348,30.7686,113.65,113.59,0.82027486]
[1644364089547,24.0921,113.69,113.59,0.82027486]
[1644364089746,24.0921,113.69,113.6,1.40165229]
[1644364089949,24.0921,113.69,113.61,0.024]
[1644364091354,46.9555,113.7,113.61,0.024]
[1644364091548,46.9555,113.7,113.62,1.37765229]
[1644364091748,46.9555,113.7,113.62,0.25]
[1644364092950,46.9555,113.7,113.61,0.024]
[1644364094256,66.1544,113.7,113.61,0.024]
[1644364094654,66.4044,113.7,113.61,0.024]
[1644364095058,4.399,113.69,113.61,0.024]
[1644364095255,4.649,113.69,113.61,0.024]
[1644364095458,23.8499,113.69,113.61,0.024]
[1644364095657,23.7107,113.68,113.61,0.024]
[1644364095856,23.9607,113.68,113.61,0.024]
[1644364096055,29.9607,113.68,113.61,0.024]
[1644364096767,43.1619,113.68,113.61,0.024]
[1644364104680,42.9119,113.68,113.61,0.024]
[1644364104879,37.1619,113.68,113.61,0.024]
[1644364106489,43.1619,113.68,113.61,0.024]
[1644364107690,43.1619,113.68,113.59,0.84427486]
[1644364108493,4.4,113.67,113.59,0.84427486]
[1644364108788,13.2028,113.66,113.59,0.82027486]
[1644364110905,0.25,113.67,113.59,0.82027486]
[1644364111105,43.1616,113.68,113.59,0.82027486]
[1644364111405,23.7107,113.68,113.59,11.32192715]
[1644364111704,23.7107,113.68,113.6,10.59]
[1644364112102,47.1145,113.7,113.62,13.1962]
[1644364112304,47.1145,113.7,113.62,13.4462]
[1644364112904,47.1145,113.7,113.6,10.614]
[1644364113106,24.7968,113.69,113.6,13.222]
[1644364113302,24.7968,113.69,113.6,13.472]
[1644364113503,30.7968,113.69,113.6,0.274]
[1644364113802,39.2268,113.69,113.6,0.274]
[1644364114302,39.2268,113.69,113.6,0.024]
[1644364114502,4.399,113.68,113.6,0.024]
[1644364114703,13.201,113.67,113.6,0.024]
[1644364114904,13.201,113.67,113.59,1.07027486]
[1644364115302,13.451,113.67,113.59,1.07027486]
[1644364115504,37.9359,113.67,113.59,1.07027486]
[1644364115905,37.9359,113.67,113.59,0.82027486]
[1644364116105,43.9359,113.67,113.59,1.07027486]
[1644364118314,48.3359,113.67,113.59,1.07027486]
[1644364118515,48.3359,113.67,113.59,0.82027486]
[1644364119216,43.9359,113.67,113.59,0.82027486]
[1644364120517,13.2032,113.65,113.59,0.82027486]
[1644364121117,13.4532,113.65,113.59,0.82027486]
[1644364122424,13.4532,113.65,113.59,1.48369663]
[1644364123228,19.4532,113.65,113.59,1.48369663]
[1644364124125,42.9401,113.65,113.59,1.48369663]
[1644364133242,42.6901,113.65,113.59,1.73369663]
[1644364133446,23.4869,113.65,113.59,1.73369663]
[1644364136364,23.4869,113.65,113.59,14.93509663]
[1644364137365,23.8225,113.66,113.59,14.93509663]
[1644364137565,23.8225,113.66,113.59,25.66309663]
[1644364137864,23.8225,113.66,113.59,38.35309663]
[1644364140980,23.8225,113.66,113.59,42.75309663]
[1644364141176,48.1454,113.66,113.59,42.75309663]
[1644364141575,48.1454,113.66,113.63,0.82027486]
[1644364141973,48.1454,113.66,113.64,4.45990311]
[1644364142174,13.2002,113.67,113.64,4.45990311]
[1644364143675,13.4502,113.67,113.64,4.45990311]
[1644364144578,19.4502,113.67,113.64,4.45990311]
[1644364148880,19.4502,113.67,113.63,0.82027486]
[1644364149081,42.9781,113.67,113.63,0.82027486]
[1644364150982,55.6681,113.67,113.59,0.66342177]
[1644364151187,13.2056,113.64,113.59,0.66342177]
[1644364151385,23.0617,113.63,113.59,0.66342177]
[1644364151784,23.3117,113.63,113.59,0.66342177]
[1644364152883,36.5173,113.63,113.59,0.66342177]
[1644364153083,42.5173,113.63,113.59,0.66342177]
[1644364155888,42.5173,113.63,113.55,0.024]
[1644364156088,4.401,113.62,113.53,0.024]
[1644364156291,13.2106,113.6,113.52,0.024]
[1644364156689,19.2106,113.6,113.52,0.024]
[1644364156890,23.8626,113.6,113.5,6.024]
[1644364157090,47.2762,113.6,113.5,0.024]
[1644364157692,47.2762,113.6,113.51,13.2109]
[1644364157892,47.2762,113.6,113.51,13.2349]
[1644364158293,47.2762,113.6,113.51,13.4849]
[1644364158793,47.2762,113.6,113.51,0.274]
[1644364159203,47.2762,113.6,113.51,0.024]
[1644364159394,47.2762,113.6,113.5,0.024]
[1644364159595,49.38395549,113.6,113.5,0.024]
[1644364160795,42.8742,113.6,113.5,0.024]
[1644364160999,47.2762,113.6,113.5,0.024]
[1644364162319,42.8742,113.6,113.5,0.024]
[1644364162519,42.6242,113.6,113.5,0.024]
[1644364162818,42.6242,113.6,113.5,13.2359]
[1644364163220,42.6242,113.6,113.5,13.4859]
[1644364163419,36.6242,113.6,113.5,13.4859]
[1644364163619,13.2106,113.6,113.51,1.37220449]
[1644364163820,13.2073,113.61,113.53,13.2077]
[1644364164220,13.2073,113.61,113.59,0.49672706]
[1644364164618,24.0152,113.63,113.59,0.49672706]
[1644364164819,23.6891,113.64,113.59,9.13272706]
[1644364165625,23.6891,113.64,113.59,0.49672706]
[1644364165825,28.0891,113.64,113.59,0.49672706]
[1644364166025,28.3391,113.64,113.59,0.49672706]
[1644364166224,47.5428,113.64,113.59,0.49672706]
[1644364166628,41.5428,113.64,113.59,0.49672706]
[1644364166826,37.1428,113.64,113.59,0.49672706]
[1644364167126,43.1428,113.64,113.59,0.49672706]
[1644364167627,12.69,113.63,113.51,44.0271]
[1644364167826,13.2096,113.6,113.53,0.024]
[1644364168226,19.4596,113.6,113.52,0.024]
[1644364168827,19.4596,113.6,113.53,13.2096]
[1644364169527,19.4596,113.6,113.53,13.4596]
[1644364169528,19.2096,113.6,113.53,13.4596]
[1644364169927,13.2096,113.6,113.53,13.4596]
[1644364170328,36.6109,113.61,113.53,13.2096]
[1644364170533,10.652,113.6,113.53,13.2336]
[1644364170729,4.652,113.6,113.52,13.2109]
[1644364170929,10.652,113.6,113.52,13.2109]
[1644364171732,13.211,113.58,113.52,13.2109]
[1644364172130,13.211,113.58,113.52,13.4609]
[1644364172732,4.652,113.6,113.52,13.4609]
[1644364172932,0.25,113.6,113.52,21.1629]
[1644364173132,13.2085,113.6,113.52,21.1629]
[1644364175032,13.4585,113.6,113.52,21.1629]
[1644364175433,13.4585,113.6,113.52,13.4609]
[1644364176742,13.2085,113.6,113.52,13.4609]
[1644364178246,13.4585,113.6,113.52,13.4609]
[1644364180187,13.4585,113.6,113.52,13.2109]
[1644364180346,19.4585,113.6,113.52,13.2109]
[1644364180848,23.8605,113.6,113.52,13.2109]
[1644364181848,19.4585,113.6,113.52,13.4609]
[1644364182350,13.4585,113.6,113.52,13.4609]
[1644364182747,13.4585,113.6,113.52,23.9829]
[1644364183249,36.6109,113.61,113.52,23.9829]
[1644364183447,36.6109,113.61,113.52,25.32183097]
[1644364184050,23.3474,113.63,113.52,31.32183097]
[1644364184252,23.3474,113.63,113.52,32.57029122]
[1644364184451,29.3474,113.63,113.52,45.26029122]
[1644364184853,13.2061,113.62,113.52,45.26029122]
[1644364186255,13.4561,113.62,113.52,45.26029122]
[1644364188176,36.5524,113.63,113.52,45.26029122]
[1644364188376,23.3474,113.63,113.53,1.24846025]
[1644364188577,23.3474,113.63,113.56,13.2036]
[1644364188778,23.3474,113.63,113.56,13.4536]
[1644364188975,23.3474,113.63,113.56,19.4536]
[1644364189178,23.6669,113.64,113.56,13.4536]
[1644364189778,36.8709,113.64,113.56,13.4536]
[1644364189978,23.6669,113.64,113.56,13.4536]
[1644364190177,1.25303953,113.66,113.56,13.4536]
[1644364190380,31.54923953,113.66,113.56,13.4536]
[1644364190579,25.29923953,113.66,113.56,26.1436]
[1644364190978,31.29923953,113.66,113.56,26.1436]
[1644364191381,1.25303953,113.65,113.56,26.1436]
[1644364191580,7.25303953,113.65,113.56,26.1436]
[1644364191778,6.25,113.65,113.56,26.1436]
[1644364192478,0.25,113.65,113.56,32.1436]
[1644364192678,6.25,113.65,113.56,32.1436]
[1644364192879,29.95023953,113.66,113.56,26.1436]
[1644364193078,31.54923953,113.66,113.56,26.1436]
[1644364193278,44.50083953,113.66,113.56,26.1436]
[1644364193479,38.50083953,113.66,113.56,26.1436]
[1644364193881,24.0462,113.66,113.56,26.1436]
[1644364194082,24.0462,113.66,113.57,4.401]
[1644364194282,22.9583,113.67,113.59,13.1978]
[1644364194483,22.9583,113.67,113.6,12.69]
[1644364194681,24.8823,113.69,113.6,12.69]
[1644364194882,24.8823,113.69,113.6,12.94]
[1644364195081,24.8823,113.69,113.6,18.94]
[1644364195884,24.8823,113.69,113.62,13.1963]
[1644364196284,24.8823,113.69,113.62,13.4463]
[1644364197387,24.97603953,113.72,113.62,13.4463]
[1644364197585,23.7279,113.71,113.62,13.4463]
[1644364197986,29.7279,113.71,113.62,13.4463]
[1644364198186,29.9779,113.71,113.62,13.4463]
[1644364200396,29.9779,113.71,113.62,13.1963]
[1644364200688,44.42713953,113.71,113.62,13.1963]
[1644364200889,2.10775549,113.7,113.62,13.1963]
[1644364201090,12.50575549,113.7,113.62,13.1963]
[1644364201289,14.00879502,113.7,113.62,13.1963]
[1644364201490,10.648,113.7,113.62,13.1963]
[1644364201693,11.90103953,113.7,113.62,13.1963]
[1644364202691,13.2002,113.68,113.62,13.1963]
[1644364203090,19.4502,113.68,113.62,13.1963]
[1644364210600,13.4502,113.68,113.62,13.1963]
[1644364210799,19.4502,113.68,113.62,13.1963]
[1644364212201,23.8492,113.68,113.62,13.1963]
[1644364213203,25.10223953,113.68,113.62,13.1963]
[1644364213926,23.8492,113.68,113.62,13.1963]
[1644364214207,25.10223953,113.68,113.62,13.1963]
[1644364215007,23.8492,113.68,113.62,13.1963]
[1644364215410,19.4502,113.68,113.62,13.1963]
[1644364215809,19.2002,113.68,113.62,13.1963]
[1644364216210,20.45323953,113.68,113.62,13.1963]
[1644364216410,24.85223953,113.68,113.62,13.1963]
[1644364216812,19.2002,113.68,113.62,13.1963]
[1644364217210,20.70323953,113.68,113.62,13.1963]
[1644364218310,25.10223953,113.68,113.62,13.1963]
[1644364219211,20.70323953,113.68,113.62,13.1963]
[1644364219611,1.25303953,113.67,113.62,13.1963]
[1644364219809,1.50303953,113.67,113.62,13.1963]
[1644364220012,20.70403953,113.67,113.62,13.1963]
[1644364221437,19.451,113.67,113.62,13.1963]
[1644364221915,20.70403953,113.67,113.62,13.1963]
[1644364223915,1.25303953,113.66,113.61,13.2013]
[1644364224115,20.45433953,113.66,113.61,13.2013]
[1644364224319,20.70433953,113.66,113.61,13.2013]
[1644364225319,6.25,113.66,113.61,13.2013]
[1644364226116,0.25,113.66,113.61,13.2013]
[1644364226317,19.2009,113.66,113.61,13.2013]
[1644364226717,19.4509,113.66,113.61,13.2013]
[1644364227418,20.70393953,113.66,113.61,13.2013]
[1644364228422,20.70393953,113.66,113.61,12.7013]
[1644364229947,1.25303953,113.66,113.61,12.7013]
[1644364230147,1.25303953,113.66,113.61,12.9513]
[1644364230548,1.25303953,113.67,113.61,12.9513]
[1644364230748,1.28575056,113.68,113.61,12.9513]
[1644364230951,1.25303953,113.68,113.61,12.9513]
[1644364231550,1.25303953,113.68,113.61,101.0813]
[1644364231753,1.28575056,113.7,113.62,12.69]
[1644364231953,1.25303953,113.7,113.64,13.1927]
[1644364232155,1.25303953,113.7,113.64,25.8827]
[1644364232350,1.25303953,113.7,113.64,26.1327]
[1644364232550,1.28575056,113.71,113.64,26.1327]
[1644364232757,1.50303953,113.71,113.64,26.1327]
[1644364232957,1.25303953,113.7,113.64,26.1327]
[1644364233359,1.50303953,113.7,113.64,26.1327]
[1644364233953,7.50303953,113.7,113.64,26.1327]
[1644364234154,1.50303953,113.7,113.64,26.1327]
[1644364236454,7.50303953,113.7,113.64,26.1327]
[1644364237464,1.50303953,113.7,113.64,26.1327]
[1644364238556,0.25,113.7,113.64,26.1327]
[1644364238760,1.53575056,113.71,113.64,26.1327]
[1644364238958,7.50303953,113.71,113.64,26.1327]
[1644364239158,1.50303953,113.71,113.64,26.1327]
[1644364239557,7.50303953,113.71,113.64,26.1327]
[1644364239957,7.50303953,113.71,113.64,13.4427]
[1644364241262,1.25303953,113.7,113.64,13.4427]
[1644364241758,1.50303953,113.7,113.64,13.4427]
[1644364242759,1.28575056,113.71,113.64,27.46419171]
[1644364242960,1.28575056,113.73,113.65,88.13]
[1644364243162,0.03271103,113.74,113.67,13.1876]
[1644364243359,0.03271103,113.75,113.68,12.69]
[1644364243559,0.03271103,113.76,113.68,12.69]
[1644364243759,25.73933953,113.77,113.68,12.94]
[1644364243961,1.28575056,113.76,113.68,12.94]
[1644364244162,5.68175056,113.76,113.69,13.1917]
[1644364244362,5.93175056,113.76,113.69,13.4417]
[1644364244562,5.93175056,113.76,113.69,13.1917]
[1644364244764,1.25303953,113.75,113.66,56.6612]
[1644364244964,38.03965056,113.75,113.66,50.2212]
[1644364245163,44.28965056,113.75,113.66,50.2212]
[1644364245663,44.28965056,113.75,113.66,44.2212]
[1644364246864,44.28965056,113.75,113.67,13.1931]
[1644364247265,44.25693953,113.75,113.67,13.4431]
[1644364247867,43.0039,113.75,113.67,13.4431]
[1644364248067,44.28965056,113.75,113.67,13.4431]
[1644364248268,44.25693953,113.75,113.67,13.4431]
[1644364248770,43.0039,113.75,113.67,13.4431]
[1644364248978,43.03661103,113.75,113.67,13.4431]
[1644364250375,43.03661103,113.75,113.67,13.1931]
[1644364250575,43.03661103,113.75,113.67,13.4431]
[1644364250774,4.397,113.74,113.67,13.4431]
[1644364251173,10.647,113.74,113.67,13.4431]
[1644364252975,23.8407,113.74,113.67,13.1931]
[1644364253177,23.8407,113.74,113.66,13.1951]
[1644364253378,0.03271103,113.73,113.66,13.1951]
[1644364253578,7.53575056,113.74,113.66,13.1951]
[1644364253995,6.28271103,113.74,113.66,13.1951]
[1644364254182,0.28271103,113.74,113.66,13.1951]
[1644364254381,4.397,113.73,113.65,13.1962]
[1644364254579,4.397,113.73,113.65,19.1962]
[1644364254580,11.65003953,113.73,113.65,19.1962]
[1644364254879,11.90003953,113.73,113.6,14.01820125]
[1644364255091,24.21281103,113.72,113.6,12.69]
[1644364255380,24.21281103,113.72,113.57,1.27246025]
[1644364255381,6.50675549,113.71,113.57,1.27246025]
[1644364255585,12.72271103,113.7,113.58,13.2039]
[1644364255780,5.68475056,113.69,113.58,13.2039]
[1644364255980,28.10038948,113.69,113.58,13.2039]
[1644364256180,23.1879,113.68,113.58,13.2039]
[1644364256379,17.6039,113.67,113.58,13.2039]
[1644364256582,23.6039,113.67,113.58,13.2039]
[1644364256787,25.71165549,113.67,113.58,13.2039]
[1644364256983,38.40165549,113.67,113.58,13.2039]
[1644364257885,38.40165549,113.67,113.57,13.2289]
[1644364258086,38.40165549,113.67,113.58,0.024]
[1644364258286,2.10775549,113.66,113.58,0.024]
[1644364258484,13.2066,113.63,113.53,57.89652901]
[1644364258686,19.2066,113.63,113.53,63.89652901]
[1644364258888,6.25,113.63,113.56,13.2061]
[1644364259289,0.25,113.63,113.56,13.2061]
[1644364259486,6.25,113.63,113.56,13.2061]
[1644364260287,6.25,113.63,113.56,13.4561]
[1644364260888,0.25,113.63,113.56,13.4561]
[1644364261088,6.25,113.63,113.56,13.4561]
[1644364262089,0.25,113.63,113.56,13.4561]
[1644364262488,30.5581,113.64,113.56,13.4561]
[1644364268420,43.7631,113.64,113.56,13.4561]
[1644364270016,30.5581,113.64,113.56,13.4561]
[1644364273617,30.5581,113.64,113.56,13.4801]
[1644364274720,30.5581,113.64,113.56,13.2301]
[1644364276220,30.5581,113.64,113.56,13.4801]
[1644364276418,30.5581,113.64,113.56,19.4801]
[1644364276718,30.5581,113.64,113.56,13.4801]
[1644364276919,48.1638,113.64,113.56,13.4801]
[1644364277319,34.9591,113.64,113.56,13.4801]
[1644364279124,30.5581,113.64,113.56,13.4801]
[1644364279822,43.7628,113.64,113.56,13.4801]
[1644364286029,30.5581,113.64,113.56,13.4801]
[1644364291444,43.762,113.64,113.56,13.2301]
[1644364291649,47.12279502,113.64,113.56,13.2301]
[1644364291849,4.401,113.63,113.56,13.2061]
[1644364292049,5.65403953,113.63,113.56,13.2061]
[1644364292248,11.90403953,113.63,113.56,13.2061]
[1644364292746,4.651,113.63,113.56,13.4561]
[1644364292950,0.25,113.63,113.56,13.4801]
[1644364293348,36.21213953,113.64,113.56,13.4801]
[1644364293549,31.81113953,113.64,113.56,13.4801]
[1644364293749,13.205,113.63,113.56,13.4801]
[1644364294448,13.455,113.63,113.56,13.4801]
[1644364294648,19.455,113.63,113.56,13.4801]
[1644364294851,13.455,113.63,113.56,13.4801]
[1644364295148,19.455,113.63,113.56,13.4801]
[1644364295753,13.455,113.63,113.56,13.4801]
[1644364295950,19.455,113.63,113.56,13.4801]
[1644364296153,23.856,113.63,113.56,13.4801]
[1644364296779,20.70803953,113.63,113.56,13.4801]
[1644364297178,20.70803953,113.63,113.56,13.4561]
[1644364297979,19.455,113.63,113.56,13.4561]
[1644364298183,19.455,113.63,113.56,13.2061]
[1644364298382,25.10903953,113.63,113.56,13.2061]
[1644364298581,25.10903953,113.63,113.56,13.4561]
[1644364298982,23.856,113.63,113.56,13.2061]
[1644364299183,25.96375549,113.63,113.55,0.024]
[1644364299380,27.593,113.62,113.55,0.024]
[1644364299582,13.207,113.61,113.55,0.024]
[1644364299780,13.457,113.61,113.55,0.024]
[1644364299980,19.457,113.61,113.55,0.024]
[1644364300784,19.457,113.61,113.55,13.2078]
[1644364301181,19.457,113.61,113.55,13.4578]
[1644364302684,13.207,113.61,113.55,13.4578]
[1644364302883,23.192,113.62,113.55,13.4578]
[1644364303084,23.192,113.62,113.55,23.7398]
[1644364304082,29.192,113.62,113.55,23.7398]
[1644364304282,29.442,113.62,113.55,23.7398]
[1644364304784,42.6475,113.62,113.55,23.7398]
[1644364304984,36.6475,113.62,113.55,23.7398]
[1644364305385,36.6475,113.62,113.55,23.4898]
[1644364305586,42.6475,113.62,113.55,13.2078]
[1644364305886,36.6475,113.62,113.55,13.2078]
[1644364306687,42.6475,113.62,113.55,13.2078]
[1644364306887,36.6475,113.62,113.55,13.4578]
[1644364307086,42.6475,113.62,113.55,13.4578]
[1644364307487,47.0485,113.62,113.55,13.4578]
[1644364308290,42.6475,113.62,113.55,13.4578]
[1644364308889,42.6475,113.62,113.55,13.2078]
[1644364309493,29.442,113.62,113.55,13.2078]
[1644364309690,23.442,113.62,113.55,13.2078]
[1644364310091,29.442,113.62,113.55,13.2078]
[1644364310294,29.442,113.62,113.55,13.4578]
[1644364310493,23.442,113.62,113.55,13.4578]
[1644364311196,0.25,113.62,113.55,13.4578]
[1644364311393,0.25,113.62,113.55,26.1478]
[1644364311594,33.9058,113.64,113.55,32.1478]
[1644364311892,29.5048,113.64,113.56,0.024]
[1644364312092,29.5048,113.64,113.58,13.2021]
[1644364312292,29.5048,113.64,113.58,13.4521]
[1644364312993,30.75783953,113.64,113.58,13.4521]
[1644364313492,29.5048,113.64,113.58,13.4521]
[1644364314293,42.7085,113.64,113.58,13.4521]
[1644364314493,43.96153953,113.64,113.58,13.4521]
[1644364315294,43.96153953,113.64,113.57,13.2301]
[1644364315495,2.10775549,113.63,113.57,13.2301]
[1644364315698,13.2067,113.62,113.57,13.4801]
[1644364316197,19.4567,113.62,113.57,13.4801]
[1644364316700,19.4567,113.62,113.57,13.2301]
[1644364316897,2.10775549,113.61,113.57,0.024]
[1644364317096,13.2085,113.6,113.54,0.024]
[1644364317308,42.3544,113.6,113.53,67.9568]
[1644364317497,2.10775549,113.59,113.52,0.024]
[1644364317698,8.35775549,113.59,113.51,30.25946025]
[1644364317897,8.35775549,113.59,113.51,30.28346025]
[1644364318096,6.25,113.59,113.51,7.27246025]
[1644364318396,6.25,113.59,113.51,6.274]
[1644364318596,19.4592,113.59,113.53,13.2101]
[1644364318797,19.4592,113.59,113.51,6.024]
[1644364319000,24.61465549,113.58,113.51,6.024]
[1644364319196,28.5069,113.58,113.51,6.024]
[1644364319396,28.7569,113.58,113.51,0.024]
[1644364319596,28.7569,113.58,113.51,6.0]
[1644364319797,13.2115,113.57,113.52,13.2108]
[1644364320200,19.2115,113.57,113.52,13.4608]
[1644364320498,19.4615,113.57,113.52,13.4608]
[1644364321506,13.4615,113.57,113.52,13.4608]
[1644364322502,13.4615,113.57,113.52,0.25]
[1644364322748,13.4615,113.57,113.51,6.25]
[1644364322902,13.4615,113.57,113.51,0.25]
[1644364323104,13.4615,113.57,113.51,6.25]
[1644364323602,13.4615,113.57,113.5,0.024]
[1644364323603,19.4615,113.57,113.5,0.024]
[1644364323804,4.402,113.56,113.5,0.024]
[1644364324016,13.2145,113.55,113.49,13.4639]
[1644364324203,13.4645,113.55,113.49,13.4879]
[1644364327411,13.2145,113.55,113.49,13.4879]
[1644364327612,22.5069,113.58,113.49,13.4879]
[1644364327812,22.5069,113.58,113.5,0.024]
[1644364328008,28.5069,113.58,113.52,13.2105]
[1644364328212,22.5069,113.58,113.52,13.4605]
[1644364328413,22.5069,113.58,113.52,13.2105]
[1644364328609,28.5069,113.58,113.52,13.4605]
[1644364328814,35.7174,113.58,113.52,13.4605]
[1644364329212,35.9674,113.58,113.52,13.4605]
[1644364330113,41.9674,113.58,113.52,13.4605]
[1644364331939,35.9674,113.58,113.52,13.4605]
[1644364333539,41.9674,113.58,113.52,13.4605]
[1644364333940,13.2093,113.59,113.52,13.2105]
[1644364334148,1.25303953,113.63,113.52,32.1505]
[1644364334350,1.25303953,113.63,113.53,0.024]
[1644364334540,1.25303953,113.65,113.56,13.2026]
[1644364334752,1.25303953,113.66,113.57,12.69]
[1644364334940,0.03271103,113.67,113.59,43.9892]
[1644364335140,1.28575056,113.69,113.6,12.69]
[1644364335341,0.03271103,113.67,113.6,114.2668]
[1644364335540,1.25303953,113.7,113.6,114.2668]
[1644364335541,1.25303953,113.7,113.6,120.2668]
[1644364335742,0.03271103,113.69,113.6,121.58822493]
[1644364335941,0.03271103,113.7,113.6,121.58822493]
[1644364336743,0.03271103,113.7,113.6,33.45822493]
[1644364336948,0.03271103,113.7,113.6,31.8868]
[1644364337247,4.399,113.69,113.6,25.8868]
[1644364337445,4.43171103,113.69,113.6,25.8868]
[1644364337646,12.78946652,113.69,113.6,25.8868]
[1644364338348,25.98956652,113.69,113.6,25.8868]
[1644364338548,56.93295162,113.69,113.58,13.2026]
[1644364338748,1.25303953,113.67,113.58,13.2026]
[1644364339147,2.10775549,113.66,113.58,13.2026]
[1644364339347,2.35775549,113.66,113.58,13.2026]
[1644364339550,8.35775549,113.66,113.58,13.2026]
[1644364339749,13.2041,113.65,113.58,13.4526]
[1644364340151,19.4541,113.65,113.58,13.4526]
[1644364341052,4.4,113.64,113.58,13.4526]
[1644364341352,17.8549,113.64,113.58,0.25]
[1644364341553,23.8549,113.64,113.56,13.4789]
[1644364341751,23.8549,113.64,113.56,13.2289]
[1644364341952,25.96265549,113.64,113.56,13.2049]
[1644364342752,25.96265549,113.64,113.56,13.4549]
[1644364343252,19.4549,113.64,113.56,13.4549]
[1644364345857,19.2049,113.64,113.56,13.2049]
[1644364346057,19.2049,113.64,113.56,13.4549]
[1644364347157,19.4549,113.64,113.56,13.4549]
[1644364347360,19.4549,113.64,113.56,13.2049]
[1644364347559,4.401,113.63,113.56,13.4549]
[1644364347867,4.651,113.63,113.56,13.4549]
[1644364348060,6.25,113.63,113.56,13.4549]
[1644364348661,6.0,113.63,113.56,13.4549]
[1644364348860,6.25,113.63,113.56,13.4549]
[1644364349362,30.0638,113.65,113.56,13.4789]
[1644364349561,30.3138,113.65,113.56,13.4789]